[Event "2026 European Womens Championship"]
[Site "Batumi, GE"]
[Date "2026.06.03"]
[Round "9"]
[White "Skvortsova, Alena"]
[Black "Demirtas, Hafize"]
[Result "1-0"]
[Board "64"]
[TimeControl "5400+30"]
[WhiteFideId "24166251"]
[BlackFideId "6382070"]
[WhiteElo "2135"]
[BlackElo "1928"]
[WhiteTitle "WFM"]
[WhiteClock "0:02:10"]
[BlackClock "0:01:00"]
[Variant "Standard"]

1. e4 {[%clk 1:30:57]}  c6 {[%clk 1:28:47]} 2. Nc3 {[%clk 1:31:18]}  d5 {[%clk 1:29:06]} 3. Nf3 {[%clk 1:31:36]}  dxe4 {[%clk 1:25:14]}
4. Nxe4 {[%clk 1:31:58]}  Nf6 {[%clk 1:25:39]} 5. Qe2 {[%clk 1:31:57]}  Nxe4 {[%clk 1:25:54]} 6. Qxe4 {[%clk 1:32:20]}  Be6 {[%clk 1:26:19]}
7. Be2 {[%clk 1:14:33]}  Bd5 {[%clk 1:25:41]} 8. Qh4 {[%clk 1:13:37]}  Nd7 {[%clk 1:24:15]} 9. d4 {[%clk 1:10:37]}  Qb6 {[%clk 1:17:40]}
10. O-O {[%clk 1:08:51]}  f6 {[%clk 1:08:34]} 11. c4 {[%clk 1:00:45]}  g5 {[%clk 1:05:07]} 12. Qg3 {[%clk 0:58:43]}  Bxf3 {[%clk 0:59:47]}
13. Bxf3 {[%clk 0:52:32]}  O-O-O {[%clk 0:59:30]} 14. c5 {[%clk 0:43:48]}  Qc7 {[%clk 0:56:02]} 15. Qg4 {[%clk 0:41:46]}  e5 {[%clk 0:50:17]}
16. d5 {[%clk 0:34:32]}  cxd5 {[%clk 0:48:36]} 17. Bxd5 {[%clk 0:34:20]}  Kb8 {[%clk 0:38:49]} 18. c6 {[%clk 0:28:54]}  Nc5 {[%clk 0:31:18]}
19. Qc4 {[%clk 0:23:34]}  bxc6 {[%clk 0:30:28]} 20. Bf3 {[%clk 0:23:36]}  Rd4 {[%clk 0:07:36]} 21. Qc2 {[%clk 0:23:57]}  g4 {[%clk 0:07:14]}
22. Be2 {[%clk 0:23:43]}  Rb4 {[%clk 0:02:07]} 23. Bd2 {[%clk 0:14:49]}  Rb6 {[%clk 0:02:30]} 24. Ba5 {[%clk 0:14:21]}  Ne6 {[%clk 0:02:30]}
25. Rfd1 {[%clk 0:11:29]}  Nd4 {[%clk 0:02:01]} 26. Rxd4 {[%clk 0:11:25]}  exd4 {[%clk 0:02:30]} 27. Bxg4 {[%clk 0:11:33]}  Bd6 {[%clk 0:01:30]}
28. Bxb6 {[%clk 0:09:59]}  axb6 {[%clk 0:01:55]} 29. Qe4 {[%clk 0:09:27]}  f5 {[%clk 0:01:14]} 30. Bxf5 {[%clk 0:08:42]}  Rf8 {[%clk 0:01:37]}
31. Rc1 {[%clk 0:07:45]}  c5 {[%clk 0:01:52]} 32. h3 {[%clk 0:02:50]}  Qf7 {[%clk 0:01:37]} 33. g4 {[%clk 0:02:15]}  Kc7 {[%clk 0:01:50]}
34. b4 {[%clk 0:02:08]}  Kb8 {[%clk 0:00:47]} 35. Qc6 {[%clk 0:01:59]}  Qc7 {[%clk 0:00:44]} 36. Qd5 {[%clk 0:02:19]}  Ka7 {[%clk 0:00:06]}
37. bxc5 {[%clk 0:02:12]}  Bxc5 {[%clk 0:00:42]} 38. Rc4 {[%clk 0:02:05]}  Ka6 {[%clk 0:00:31]} 39. Ra4+ {[%clk 0:02:03]}  Kb5 {[%clk 0:01:00]}
40. Bd7+ {[%clk 0:02:10]} 1-0

[Event "2026 European Womens Championship"]
[Site "Batumi, GE"]
[Date "2026.06.03"]
[Round "9"]
[White "Esadze, Tamari"]
[Black "Donghvani, Nia"]
[Result "1/2-1/2"]
[Board "65"]
[TimeControl "5400+30"]
[WhiteFideId "13611186"]
[BlackFideId "13614649"]
[WhiteElo "1974"]
[BlackElo "2117"]
[BlackTitle "WFM"]
[WhiteClock "1:06:43"]
[BlackClock "1:04:45"]
[Variant "Standard"]

1. e4 {[%clk 1:30:58]}  c5 {[%clk 1:30:49]} 2. Nf3 {[%clk 1:31:23]}  d6 {[%clk 1:31:10]} 3. d4 {[%clk 1:31:40]}  cxd4 {[%clk 1:31:34]}
4. Nxd4 {[%clk 1:32:06]}  Nf6 {[%clk 1:31:59]} 5. Nc3 {[%clk 1:32:29]}  a6 {[%clk 1:32:23]} 6. Bg5 {[%clk 1:30:58]}  e6 {[%clk 1:31:14]}
7. f4 {[%clk 1:27:55]}  Be7 {[%clk 1:28:29]} 8. Qf3 {[%clk 1:25:57]}  Nbd7 {[%clk 1:26:33]} 9. O-O-O {[%clk 1:23:53]}  Qc7 {[%clk 1:26:31]}
10. g4 {[%clk 1:23:38]}  b5 {[%clk 1:22:50]} 11. Bxf6 {[%clk 1:21:44]}  Nxf6 {[%clk 1:21:55]} 12. g5 {[%clk 1:20:14]}  Nd7 {[%clk 1:19:20]}
13. f5 {[%clk 1:19:55]}  O-O {[%clk 1:17:08]} 14. Qh5 {[%clk 1:17:16]}  b4 {[%clk 1:14:19]} 15. Rd3 {[%clk 1:09:51]}  bxc3 {[%clk 1:11:34]}
16. Rxc3 {[%clk 1:09:28]}  Qb6 {[%clk 1:09:24]} 17. Nc6 {[%clk 1:05:53]}  Bf6 {[%clk 1:04:03]} 18. e5 {[%clk 1:05:07]}  g6 {[%clk 1:03:50]}
19. Qh4 {[%clk 1:04:58]}  Bxe5 {[%clk 1:02:22]} 20. Ne7+ {[%clk 1:03:45]}  Kh8 {[%clk 1:02:20]} 21. fxg6 {[%clk 1:03:32]}  fxg6 {[%clk 1:02:40]}
22. Nxg6+ {[%clk 1:03:47]}  Kg8 {[%clk 1:02:50]} 23. Ne7+ {[%clk 1:03:43]}  Kh8 {[%clk 1:03:06]} 24. Ng6+ {[%clk 1:04:00]}  Kg8 {[%clk 1:02:56]}
25. Ne7+ {[%clk 1:04:12]}  Kh8 {[%clk 1:03:15]} 26. Ng6+ {[%clk 1:04:38]}  Kg8 {[%clk 1:03:21]} 27. Ne7+ {[%clk 1:05:04]}  Kh8 {[%clk 1:03:45]}
28. Ng6+ {[%clk 1:05:29]}  Kg8 {[%clk 1:04:06]} 29. Ne7+ {[%clk 1:05:56]}  Kh8 {[%clk 1:04:17]} 30. Ng6+ {[%clk 1:06:22]}  Kg8 {[%clk 1:04:45]}
31. Ne7+ {[%clk 1:06:43]} 1/2-1/2

[Event "2026 European Womens Championship"]
[Site "Batumi, GE"]
[Date "2026.06.03"]
[Round "9"]
[White "Aghaverdiyeva, Maryam"]
[Black "Ashotia, Barbare"]
[Result "1/2-1/2"]
[Board "66"]
[TimeControl "5400+30"]
[WhiteFideId "13452509"]
[BlackFideId "13625187"]
[WhiteElo "2103"]
[BlackElo "1913"]
[WhiteTitle "WFM"]
[WhiteClock "0:13:09"]
[BlackClock "0:06:23"]
[Variant "Standard"]

1. e4 {[%clk 1:30:50]}  e6 {[%clk 1:30:30]} 2. d4 {[%clk 1:30:15]}  d5 {[%clk 1:30:34]} 3. Nd2 {[%clk 1:30:37]}  c5 {[%clk 1:30:25]}
4. Ngf3 {[%clk 1:30:57]}  cxd4 {[%clk 1:30:30]} 5. exd5 {[%clk 1:31:21]}  Qxd5 {[%clk 1:30:25]} 6. Bc4 {[%clk 1:31:44]}  Qd6 {[%clk 1:30:17]}
7. O-O {[%clk 1:31:56]}  Nf6 {[%clk 1:30:07]} 8. Nb3 {[%clk 1:32:20]}  Nc6 {[%clk 1:30:12]} 9. Nbxd4 {[%clk 1:32:43]}  Nxd4 {[%clk 1:30:11]}
10. Nxd4 {[%clk 1:33:07]}  Be7 {[%clk 1:30:13]} 11. c3 {[%clk 1:33:23]}  O-O {[%clk 1:24:19]} 12. Qf3 {[%clk 1:33:32]}  Qc7 {[%clk 1:13:56]}
13. Bd3 {[%clk 1:32:22]}  Bd7 {[%clk 1:10:50]} 14. Re1 {[%clk 1:30:20]}  Rfd8 {[%clk 0:58:08]} 15. a4 {[%clk 1:22:22]}  Rac8 {[%clk 0:42:55]}
16. a5 {[%clk 1:18:00]}  Bc6 {[%clk 0:22:27]} 17. Nxc6 {[%clk 1:17:16]}  Qxc6 {[%clk 0:22:50]} 18. Qxc6 {[%clk 1:09:45]}  Rxc6 {[%clk 0:21:09]}
19. Bf1 {[%clk 1:10:05]}  Nd5 {[%clk 0:18:21]} 20. a6 {[%clk 1:06:21]}  b6 {[%clk 0:16:20]} 21. g3 {[%clk 1:03:58]}  Bc5 {[%clk 0:14:40]}
22. Bb5 {[%clk 0:50:35]}  Rcc8 {[%clk 0:11:01]} 23. Kf1 {[%clk 0:50:10]}  Kf8 {[%clk 0:09:36]} 24. Ke2 {[%clk 0:48:38]}  f6 {[%clk 0:08:17]}
25. h4 {[%clk 0:44:07]}  e5 {[%clk 0:05:53]} 26. h5 {[%clk 0:43:01]}  g6 {[%clk 0:05:13]} 27. Kf3 {[%clk 0:39:07]}  Kg7 {[%clk 0:04:15]}
28. Ra4 {[%clk 0:33:25]}  Nc7 {[%clk 0:02:42]} 29. Bc6 {[%clk 0:33:02]}  Ne6 {[%clk 0:02:53]} 30. Bb7 {[%clk 0:32:15]}  Rd3+ {[%clk 0:02:50]}
31. Ke2 {[%clk 0:31:49]}  Rcd8 {[%clk 0:03:02]} 32. hxg6 {[%clk 0:31:44]}  hxg6 {[%clk 0:02:43]} 33. Rh4 {[%clk 0:31:59]}  f5 {[%clk 0:02:30]}
34. Reh1 {[%clk 0:30:51]}  Kf6 {[%clk 0:02:37]} 35. Rh7 {[%clk 0:27:35]}  Bf8 {[%clk 0:01:07]} 36. Be3 {[%clk 0:19:33]}  R3d6 {[%clk 0:01:19]}
37. f4 {[%clk 0:17:55]}  e4 {[%clk 0:00:49]} 38. g4 {[%clk 0:18:07]}  Bg7 {[%clk 0:01:05]} 39. Rg1 {[%clk 0:10:12]}  Nf8 {[%clk 0:00:41]}
40. Rhh1 {[%clk 0:04:07]}  Ne6 {[%clk 0:00:46]} 41. Rd1 {[%clk 0:21:38]}  Rxd1 {[%clk 0:23:22]} 42. Rxd1 {[%clk 0:21:52]}  Rxd1 {[%clk 0:23:47]}
43. g5+ {[%clk 0:17:08]}  Ke7 {[%clk 0:17:18]} 44. Kxd1 {[%clk 0:17:32]}  Nc7 {[%clk 0:14:02]} 45. Kc2 {[%clk 0:15:24]}  Kd7 {[%clk 0:12:55]}
46. Bxb6 {[%clk 0:10:20]}  axb6 {[%clk 0:12:29]} 47. a7 {[%clk 0:10:44]}  Bf8 {[%clk 0:11:24]} 48. Kd2 {[%clk 0:11:06]}  Bd6 {[%clk 0:10:44]}
49. Ke3 {[%clk 0:11:30]}  Bc5+ {[%clk 0:10:30]} 50. Ke2 {[%clk 0:11:53]}  b5 {[%clk 0:05:08]} 51. a8=Q {[%clk 0:11:20]}  Nxa8 {[%clk 0:05:33]}
52. Bxa8 {[%clk 0:12:13]}  Bd6 {[%clk 0:05:39]} 53. Ke3 {[%clk 0:12:23]}  Bc5+ {[%clk 0:05:59]} 54. Ke2 {[%clk 0:12:44]}  Bd6 {[%clk 0:06:23]}
55. Ke3 {[%clk 0:13:09]} 1/2-1/2

[Event "2026 European Womens Championship"]
[Site "Batumi, GE"]
[Date "2026.06.03"]
[Round "9"]
[White "Kalandadze, Mariam"]
[Black "Shuqja, Klean"]
[Result "1-0"]
[Board "67"]
[TimeControl "5400+30"]
[WhiteFideId "13621122"]
[BlackFideId "4701585"]
[WhiteElo "1892"]
[BlackElo "2092"]
[BlackTitle "WFM"]
[WhiteClock "0:21:55"]
[BlackClock "0:01:07"]
[Variant "Standard"]

1. d4 {[%clk 1:30:57]}  Nf6 {[%clk 1:28:17]} 2. c4 {[%clk 1:31:04]}  e6 {[%clk 1:28:44]} 3. Nf3 {[%clk 1:31:27]}  d5 {[%clk 1:29:10]}
4. Nc3 {[%clk 1:31:51]}  Bb4 {[%clk 1:29:34]} 5. Bg5 {[%clk 1:31:46]}  h6 {[%clk 1:29:57]} 6. Bxf6 {[%clk 1:32:12]}  Qxf6 {[%clk 1:30:24]}
7. e3 {[%clk 1:32:34]}  O-O {[%clk 1:30:49]} 8. Rc1 {[%clk 1:33:01]}  dxc4 {[%clk 1:31:13]} 9. Bxc4 {[%clk 1:33:08]}  c5 {[%clk 1:31:42]}
10. O-O {[%clk 1:33:21]}  cxd4 {[%clk 1:32:01]} 11. Ne4 {[%clk 1:32:56]}  Qe7 {[%clk 1:32:29]} 12. a3 {[%clk 1:32:12]}  Ba5 {[%clk 1:31:03]}
13. Qxd4 {[%clk 1:32:34]}  Rd8 {[%clk 1:28:06]} 14. Qc5 {[%clk 1:32:43]}  Qxc5 {[%clk 1:26:58]} 15. Nxc5 {[%clk 1:33:06]}  Nd7 {[%clk 1:24:01]}
16. Nb3 {[%clk 1:27:22]}  Bb6 {[%clk 1:23:25]} 17. Rfd1 {[%clk 1:26:23]}  a6 {[%clk 1:21:13]} 18. a4 {[%clk 1:19:31]}  Nf6 {[%clk 1:09:27]}
19. Rxd8+ {[%clk 1:15:11]}  Bxd8 {[%clk 1:09:55]} 20. Ne5 {[%clk 1:14:39]}  Ne4 {[%clk 1:03:28]} 21. Be2 {[%clk 1:03:30]}  Nd6 {[%clk 0:55:36]}
22. Bf3 {[%clk 0:58:05]}  Bf6 {[%clk 0:48:20]} 23. Nd3 {[%clk 0:57:47]}  Rb8 {[%clk 0:41:53]} 24. Nd2 {[%clk 0:38:57]}  Bd7 {[%clk 0:38:40]}
25. b3 {[%clk 0:37:50]}  Rc8 {[%clk 0:27:50]} 26. Rxc8+ {[%clk 0:35:41]}  Bxc8 {[%clk 0:28:12]} 27. Kf1 {[%clk 0:30:19]}  b5 {[%clk 0:23:24]}
28. axb5 {[%clk 0:27:41]}  axb5 {[%clk 0:22:51]} 29. Nc5 {[%clk 0:26:09]}  Bc3 {[%clk 0:20:08]} 30. Nde4 {[%clk 0:23:27]}  Nxe4 {[%clk 0:18:03]}
31. Bxe4 {[%clk 0:23:45]}  e5 {[%clk 0:13:26]} 32. Ke2 {[%clk 0:23:01]}  Kf8 {[%clk 0:12:27]} 33. Bc6 {[%clk 0:15:16]}  b4 {[%clk 0:11:23]}
34. Bd7 {[%clk 0:12:49]}  Bxd7 {[%clk 0:10:38]} 35. Nxd7+ {[%clk 0:13:14]}  Ke7 {[%clk 0:10:03]} 36. Nc5 {[%clk 0:12:21]}  f5 {[%clk 0:02:07]}
37. f3 {[%clk 0:12:47]}  Kd6 {[%clk 0:01:44]} 38. Na4 {[%clk 0:13:00]}  Ba1 {[%clk 0:01:08]} 39. Kd3 {[%clk 0:12:52]}  Kd5 {[%clk 0:00:35]}
40. e4+ {[%clk 0:11:50]}  fxe4+ {[%clk 0:00:53]} 41. fxe4+ {[%clk 0:12:17]}  Kc6 {[%clk 0:06:25]} 42. Kc4 {[%clk 0:42:36]}  Bd4 {[%clk 0:06:31]}
43. Kxb4 {[%clk 0:43:01]}  h5 {[%clk 0:06:45]} 44. Kc4 {[%clk 0:42:51]}  g5 {[%clk 0:06:54]} 45. b4 {[%clk 0:39:44]}  g4 {[%clk 0:06:49]}
46. Nc3 {[%clk 0:31:50]}  h4 {[%clk 0:06:23]} 47. h3 {[%clk 0:32:16]}  gxh3 {[%clk 0:06:27]} 48. gxh3 {[%clk 0:32:43]}  Ba7 {[%clk 0:04:54]}
49. Nd5 {[%clk 0:31:44]}  Bf2 {[%clk 0:03:37]} 50. Kd3 {[%clk 0:30:47]}  Kb5 {[%clk 0:03:36]} 51. Ke2 {[%clk 0:31:12]}  Bg3 {[%clk 0:02:33]}
52. Kf3 {[%clk 0:31:38]}  Kc4 {[%clk 0:02:43]} 53. Kg4 {[%clk 0:32:03]}  Kd4 {[%clk 0:02:24]} 54. Kf5 {[%clk 0:32:28]}  Kc4 {[%clk 0:02:07]}
55. Ne7 {[%clk 0:31:05]}  Kxb4 {[%clk 0:02:17]} 56. Nc6+ {[%clk 0:31:32]}  Kc5 {[%clk 0:02:08]} 57. Nxe5 {[%clk 0:31:58]}  Kd4 {[%clk 0:02:25]}
58. Nf7 {[%clk 0:29:16]}  Ke3 {[%clk 0:01:54]} 59. e5 {[%clk 0:29:15]}  Be1 {[%clk 0:01:50]} 60. e6 {[%clk 0:27:43]}  Bb4 {[%clk 0:02:08]}
61. Kf6 {[%clk 0:27:04]}  Kf4 {[%clk 0:00:34]} 62. e7 {[%clk 0:27:21]}  Bxe7+ {[%clk 0:00:57]} 63. Kxe7 {[%clk 0:27:48]}  Kf5 {[%clk 0:01:02]}
64. Nd8 {[%clk 0:24:15]}  Kf4 {[%clk 0:00:41]} 65. Ne6+ {[%clk 0:24:39]}  Ke5 {[%clk 0:00:37]} 66. Kf7 {[%clk 0:20:27]}  Kf5 {[%clk 0:00:59]}
67. Ng7+ {[%clk 0:20:28]}  Kf4 {[%clk 0:01:11]} 68. Nh5+ {[%clk 0:20:46]}  Kg5 {[%clk 0:01:02]} 69. Nf6 {[%clk 0:20:48]}  Kf4 {[%clk 0:01:05]}
70. Nh7 {[%clk 0:20:52]}  Kf5 {[%clk 0:00:44]} 71. Kg7 {[%clk 0:21:11]}  Kf4 {[%clk 0:01:05]} 72. Kg6 {[%clk 0:21:29]}  Kg3 {[%clk 0:01:07]}
73. Ng5 {[%clk 0:21:55]} 1-0

[Event "2026 European Womens Championship"]
[Site "Batumi, GE"]
[Date "2026.06.03"]
[Round "9"]
[White "Gharibyan, Mane"]
[Black "Buyuk, Ecrin Efsa"]
[Result "1-0"]
[Board "68"]
[TimeControl "5400+30"]
[WhiteFideId "13306430"]
[BlackFideId "44505175"]
[WhiteElo "1776"]
[BlackElo "2076"]
[BlackTitle "WFM"]
[WhiteClock "0:00:56"]
[BlackClock "0:01:16"]
[Variant "Standard"]

1. e4 {[%clk 1:30:45]}  c6 {[%clk 1:30:57]} 2. d4 {[%clk 1:31:07]}  d5 {[%clk 1:31:23]} 3. Nd2 {[%clk 1:31:10]}  dxe4 {[%clk 1:31:49]}
4. Nxe4 {[%clk 1:31:36]}  Nf6 {[%clk 1:32:15]} 5. Nxf6+ {[%clk 1:31:58]}  exf6 {[%clk 1:32:41]} 6. c3 {[%clk 1:32:22]}  Bd6 {[%clk 1:33:08]}
7. Bd3 {[%clk 1:32:46]}  O-O {[%clk 1:33:27]} 8. Qc2 {[%clk 1:32:14]}  Re8+ {[%clk 1:33:48]} 9. Ne2 {[%clk 1:32:08]}  h6 {[%clk 1:23:27]}
10. Be3 {[%clk 1:32:10]}  Nd7 {[%clk 1:23:40]} 11. O-O-O {[%clk 1:25:31]}  Nf8 {[%clk 1:23:22]} 12. Kb1 {[%clk 1:18:17]}  Be6 {[%clk 1:22:54]}
13. c4 {[%clk 1:14:34]}  Rc8 {[%clk 1:20:14]} 14. Qd2 {[%clk 1:09:17]}  a5 {[%clk 0:56:08]} 15. Nf4 {[%clk 0:59:11]}  Bxf4 {[%clk 0:53:56]}
16. Bxf4 {[%clk 0:59:28]}  b5 {[%clk 0:49:44]} 17. Qc3 {[%clk 0:36:11]}  Nd7 {[%clk 0:44:36]} 18. c5 {[%clk 0:33:01]}  Nb8 {[%clk 0:38:17]}
19. Bd6 {[%clk 0:27:49]}  Na6 {[%clk 0:36:41]} 20. a4 {[%clk 0:23:14]}  b4 {[%clk 0:34:50]} 21. Qd2 {[%clk 0:18:50]}  Nc7 {[%clk 0:32:40]}
22. Rhe1 {[%clk 0:18:18]}  Qd7 {[%clk 0:23:22]} 23. Kc2 {[%clk 0:08:38]}  Nd5 {[%clk 0:17:45]} 24. f3 {[%clk 0:06:01]}  b3+ {[%clk 0:10:58]}
25. Kc1 {[%clk 0:05:24]}  Ra8 {[%clk 0:08:12]} 26. g4 {[%clk 0:05:09]}  Nb6 {[%clk 0:05:49]} 27. Bb1 {[%clk 0:02:21]}  Nxa4 {[%clk 0:03:30]}
28. Qd3 {[%clk 0:02:44]}  g6 {[%clk 0:03:56]} 29. h4 {[%clk 0:02:41]}  f5 {[%clk 0:03:26]} 30. h5 {[%clk 0:02:19]}  Nxb2 {[%clk 0:01:07]}
31. Kxb2 {[%clk 0:02:08]}  a4 {[%clk 0:01:35]} 32. Ka3 {[%clk 0:01:49]}  Qb7 {[%clk 0:00:54]} 33. Rd2 {[%clk 0:00:42]}  Ra5 {[%clk 0:00:41]}
34. hxg6 {[%clk 0:00:56]}  fxg6 {[%clk 0:01:10]} 35. gxf5 {[%clk 0:00:51]}  Bf7 {[%clk 0:01:07]} 36. Rxe8+ {[%clk 0:01:07]}  Bxe8 {[%clk 0:01:35]}
37. fxg6 {[%clk 0:01:11]}  Qb5 {[%clk 0:01:14]} 38. Qxb5 {[%clk 0:01:07]}  cxb5 {[%clk 0:01:28]} 39. d5 {[%clk 0:00:41]}  Ra8 {[%clk 0:01:16]}
40. c6 {[%clk 0:00:56]} 1-0

[Event "2026 European Womens Championship"]
[Site "Batumi, GE"]
[Date "2026.06.03"]
[Round "9"]
[White "Tsiganova, Monika"]
[Black "Saltkhutsishvili, Sara"]
[Result "0-1"]
[Board "69"]
[TimeControl "5400+30"]
[WhiteFideId "4500199"]
[BlackFideId "13636995"]
[WhiteElo "2039"]
[BlackElo "1763"]
[WhiteTitle "WIM"]
[WhiteClock "0:02:25"]
[BlackClock "0:02:32"]
[Variant "Standard"]

1. d4 {[%clk 1:30:56]}  d5 {[%clk 1:30:59]} 2. c4 {[%clk 1:30:56]}  e6 {[%clk 1:31:27]} 3. Nc3 {[%clk 1:31:13]}  Be7 {[%clk 1:31:55]}
4. Nf3 {[%clk 1:30:33]}  Nf6 {[%clk 1:32:19]} 5. Bf4 {[%clk 1:30:26]}  O-O {[%clk 1:32:09]} 6. e3 {[%clk 1:30:30]}  c5 {[%clk 1:31:42]}
7. cxd5 {[%clk 1:29:38]}  Nxd5 {[%clk 1:27:45]} 8. Bg3 {[%clk 1:20:07]}  Nc6 {[%clk 1:18:18]} 9. Bd3 {[%clk 1:17:10]}  cxd4 {[%clk 1:16:48]}
10. exd4 {[%clk 1:16:51]}  Qb6 {[%clk 1:11:11]} 11. O-O {[%clk 1:14:55]}  Qxb2 {[%clk 1:03:23]} 12. Nb5 {[%clk 0:55:55]}  Qb4 {[%clk 0:52:49]}
13. Rb1 {[%clk 0:40:53]}  Qa5 {[%clk 0:51:24]} 14. Nd6 {[%clk 0:36:43]}  Nc3 {[%clk 0:44:45]} 15. Qc2 {[%clk 0:24:28]}  Nxb1 {[%clk 0:41:33]}
16. Bxh7+ {[%clk 0:23:36]}  Kh8 {[%clk 0:41:51]} 17. Rxb1 {[%clk 0:24:00]}  Nb4 {[%clk 0:38:55]} 18. Qd2 {[%clk 0:20:12]}  Kxh7 {[%clk 0:34:10]}
19. Rxb4 {[%clk 0:20:15]}  Qd5 {[%clk 0:33:18]} 20. Rb5 {[%clk 0:20:28]}  Qc6 {[%clk 0:32:49]} 21. Rh5+ {[%clk 0:19:03]}  Kg8 {[%clk 0:32:16]}
22. Rc5 {[%clk 0:14:15]}  Qd7 {[%clk 0:29:09]} 23. Ne4 {[%clk 0:04:43]}  Bxc5 {[%clk 0:24:33]} 24. Nxc5 {[%clk 0:05:07]}  Qb5 {[%clk 0:24:34]}
25. h4 {[%clk 0:05:22]}  b6 {[%clk 0:24:06]} 26. Nd3 {[%clk 0:03:59]}  Ba6 {[%clk 0:17:04]} 27. Nde5 {[%clk 0:04:04]}  f6 {[%clk 0:16:38]}
28. Ng4 {[%clk 0:04:19]}  Rac8 {[%clk 0:15:39]} 29. Qf4 {[%clk 0:04:31]}  Qf5 {[%clk 0:14:40]} 30. Qxf5 {[%clk 0:04:21]}  exf5 {[%clk 0:15:09]}
31. Ne3 {[%clk 0:04:43]}  Rc1+ {[%clk 0:13:58]} 32. Kh2 {[%clk 0:05:09]}  Ra1 {[%clk 0:11:42]} 33. a3 {[%clk 0:05:25]}  Rd8 {[%clk 0:11:30]}
34. Nxf5 {[%clk 0:05:38]}  Bb7 {[%clk 0:10:59]} 35. Nd2 {[%clk 0:02:58]}  Bd5 {[%clk 0:09:11]} 36. h5 {[%clk 0:02:42]}  Rxa3 {[%clk 0:08:54]}
37. h6 {[%clk 0:03:01]}  gxh6 {[%clk 0:08:48]} 38. Nxh6+ {[%clk 0:03:24]}  Kf8 {[%clk 0:08:26]} 39. Bh4 {[%clk 0:03:16]}  Kg7 {[%clk 0:07:25]}
40. Nf5+ {[%clk 0:02:39]}  Kg6 {[%clk 0:07:36]} 41. g4 {[%clk 0:02:20]}  Be6 {[%clk 0:04:07]} 42. Ne3 {[%clk 0:01:18]}  Rxd4 {[%clk 0:03:49]}
43. Nc2 {[%clk 0:01:20]}  Rxg4 {[%clk 0:03:00]} 44. Nxa3 {[%clk 0:01:42]}  Rxh4+ {[%clk 0:03:28]} 45. Kg2 {[%clk 0:02:03]}  Rd4 {[%clk 0:01:58]}
46. Nf1 {[%clk 0:02:18]}  Rd3 {[%clk 0:02:14]} 47. Nb5 {[%clk 0:02:25]}  Bh3+ {[%clk 0:02:32]} 0-1

[Event "2026 European Womens Championship"]
[Site "Batumi, GE"]
[Date "2026.06.03"]
[Round "9"]
[White "Tsirulnik, Maritsa"]
[Black "Danielyan, Lilia"]
[Result "0-1"]
[Board "70"]
[TimeControl "5400+30"]
[WhiteFideId "14118688"]
[BlackFideId "13319841"]
[WhiteElo "2028"]
[BlackElo "1728"]
[WhiteTitle "WFM"]
[WhiteClock "0:03:03"]
[BlackClock "0:10:33"]
[Variant "Standard"]

1. Nf3 {[%clk 1:30:57]}  Nf6 {[%clk 1:30:14]} 2. c4 {[%clk 1:30:22]}  c5 {[%clk 1:30:20]} 3. Nc3 {[%clk 1:29:45]}  d6 {[%clk 1:29:44]}
4. d4 {[%clk 1:27:06]}  cxd4 {[%clk 1:29:35]} 5. Nxd4 {[%clk 1:27:31]}  Nc6 {[%clk 1:29:41]} 6. e4 {[%clk 1:23:00]}  g6 {[%clk 1:28:15]}
7. Be2 {[%clk 1:21:51]}  Bg7 {[%clk 1:27:59]} 8. Be3 {[%clk 1:21:04]}  O-O {[%clk 1:27:12]} 9. O-O {[%clk 1:17:08]}  Bd7 {[%clk 1:24:20]}
10. Nc2 {[%clk 1:15:05]}  Rc8 {[%clk 1:20:00]} 11. Rc1 {[%clk 1:12:30]}  Ne5 {[%clk 1:10:05]} 12. b3 {[%clk 1:12:19]}  b5 {[%clk 1:05:06]}
13. f4 {[%clk 1:02:40]}  Neg4 {[%clk 1:03:09]} 14. Bxa7 {[%clk 1:00:32]}  Qa5 {[%clk 0:57:57]} 15. Bd4 {[%clk 1:00:27]}  e5 {[%clk 0:56:46]}
16. fxe5 {[%clk 1:00:27]}  dxe5 {[%clk 0:56:52]} 17. b4 {[%clk 1:00:50]}  Qa8 {[%clk 0:55:25]} 18. Bc5 {[%clk 1:00:49]}  Rfd8 {[%clk 0:45:44]}
19. Bb6 {[%clk 0:54:51]}  bxc4 {[%clk 0:42:04]} 20. h3 {[%clk 0:52:48]}  Ba4 {[%clk 0:23:03]} 21. Bxd8 {[%clk 0:46:50]}  Rxd8 {[%clk 0:23:24]}
22. Qe1 {[%clk 0:46:55]}  Bxc2 {[%clk 0:22:18]} 23. hxg4 {[%clk 0:43:25]}  Bd3 {[%clk 0:20:24]} 24. g5 {[%clk 0:43:11]}  Nh5 {[%clk 0:17:51]}
25. Bxd3 {[%clk 0:40:17]}  cxd3 {[%clk 0:16:44]} 26. Qe3 {[%clk 0:38:55]}  Nf4 {[%clk 0:15:08]} 27. Kh2 {[%clk 0:33:32]}  d2 {[%clk 0:11:02]}
28. Rc2 {[%clk 0:32:05]}  Rd3 {[%clk 0:10:30]} 29. Qb6 {[%clk 0:31:55]}  Qc8 {[%clk 0:08:05]} 30. Qf2 {[%clk 0:25:55]}  Rxc3 {[%clk 0:02:57]}
31. Rxd2 {[%clk 0:25:48]}  Bf8 {[%clk 0:02:44]} 32. Qh4 {[%clk 0:11:29]}  Qc4 {[%clk 0:01:27]} 33. Rdf2 {[%clk 0:07:34]}  Rc2 {[%clk 0:01:05]}
34. a3 {[%clk 0:04:17]}  Ra2 {[%clk 0:00:36]} 35. Rxa2 {[%clk 0:03:51]}  Qxf1 {[%clk 0:00:56]} 36. Qf2 {[%clk 0:02:39]}  Qb1 {[%clk 0:01:14]}
37. Qc2 {[%clk 0:02:00]}  Qe1 {[%clk 0:01:35]} 38. g3 {[%clk 0:01:01]}  Ne6 {[%clk 0:01:55]} 39. Qe2 {[%clk 0:00:58]}  Qc1 {[%clk 0:01:53]}
40. Qd2 {[%clk 0:01:05]}  Qc4 {[%clk 0:01:26]} 41. Qd5 {[%clk 0:27:05]}  Qc3 {[%clk 0:31:08]} 42. Qd2 {[%clk 0:25:43]}  Qb3 {[%clk 0:28:17]}
43. Qb2 {[%clk 0:23:19]}  Qe3 {[%clk 0:27:25]} 44. Qxe5 {[%clk 0:21:44]}  Nxg5 {[%clk 0:27:05]} 45. Qf4 {[%clk 0:21:49]}  Qb3 {[%clk 0:24:42]}
46. Rf2 {[%clk 0:20:40]}  h6 {[%clk 0:24:54]} 47. e5 {[%clk 0:18:46]}  Qe6 {[%clk 0:23:04]} 48. Re2 {[%clk 0:15:34]}  Bg7 {[%clk 0:22:47]}
49. Re3 {[%clk 0:07:49]}  Bxe5 {[%clk 0:19:13]} 50. Qf1 {[%clk 0:06:22]}  Qd5 {[%clk 0:14:41]} 51. Qg2 {[%clk 0:04:40]}  Qd4 {[%clk 0:14:21]}
52. Qe2 {[%clk 0:04:52]}  Qh4+ {[%clk 0:12:15]} 53. Kg1 {[%clk 0:04:02]}  Bxg3 {[%clk 0:11:37]} 54. Qg2 {[%clk 0:03:19]}  Nh3+ {[%clk 0:10:00]}
55. Kf1 {[%clk 0:03:33]}  Qc4+ {[%clk 0:10:10]} 56. Re2 {[%clk 0:03:03]}  Qc1+ {[%clk 0:10:33]} 0-1